[Event "January 2 Early 2024"]
[Site "https://www.chess.com"]
[Date "2024.01.02"]
[Round "7"]
[White "Rangel, Daniel"]
[Black "Syaputra, Arifa Rizki"]
[Result "0-1"]
[Board "66"]
[TimeControl "180+1"]
[WhiteFideId "2124475"]
[BlackFideId "7105100"]
[WhiteElo "2541"]
[BlackElo "2724"]
[WhiteTeam "BRA"]
[BlackTeam "INA"]
[WhiteClock "0:00:01"]
[BlackClock "0:00:06"]

1. c4 {[%clk 0:03:00]}  Nf6 {[%clk 0:02:57]} 2. g3 {[%clk 0:03:01]}  g6 {[%clk 0:02:57]} 3. Bg2 {[%clk 0:03:01]}  Bg7 {[%clk 0:02:47]} 4. Nc3 {[%clk 0:03:02]}  O-O {[%clk 0:02:47]} 5. e3 {[%clk 0:03:03]}  d6 {[%clk 0:02:47]} 6. Nge2 {[%clk 0:03:04]}  Nc6 {[%clk 0:02:48]} 7. O-O {[%clk 0:03:03]}  e5 {[%clk 0:02:49]} 8. Rb1 {[%clk 0:03:02]}  Be6 {[%clk 0:02:46]} 9. Nd5 {[%clk 0:02:52]}  Bxd5 {[%clk 0:02:41]} 10. cxd5 {[%clk 0:02:51]}  Ne7 {[%clk 0:02:41]} 11. Qb3 {[%clk 0:02:44]}  Qd7 {[%clk 0:02:20]} 12. d3 {[%clk 0:02:42]}  c6 {[%clk 0:02:16]} 13. dxc6 {[%clk 0:02:41]}  bxc6 {[%clk 0:02:17]} 14. Bd2 {[%clk 0:02:40]}  Rfc8 {[%clk 0:02:06]} 15. Rbc1 {[%clk 0:02:34]}  h5 {[%clk 0:02:06]} 16. Rc2 {[%clk 0:02:24]}  h4 {[%clk 0:01:54]} 17. Rfc1 {[%clk 0:02:20]}  h3 {[%clk 0:01:52]} 18. Bh1 {[%clk 0:02:15]}  Rab8 {[%clk 0:01:52]} 19. Qa4 {[%clk 0:02:11]}  d5 {[%clk 0:01:47]} 20. Bb4 {[%clk 0:02:05]}  Nf5 {[%clk 0:01:35]} 21. Ba3 {[%clk 0:01:58]}  Rb6 {[%clk 0:01:20]} 22. Bc5 {[%clk 0:01:51]}  Rb7 {[%clk 0:01:21]} 23. Ba3 {[%clk 0:01:50]}  Rb6 {[%clk 0:01:21]} 24. Bc5 {[%clk 0:01:36]}  Rb7 {[%clk 0:01:20]} 25. Ba3 {[%clk 0:01:36]}  Rbc7 {[%clk 0:01:08]} 26. Nc3 {[%clk 0:01:28]}  d4 {[%clk 0:01:03]} 27. exd4 {[%clk 0:01:20]}  Nxd4 {[%clk 0:01:04]} 28. Rd2 {[%clk 0:01:14]}  Bh6 {[%clk 0:00:56]} 29. Rcd1 {[%clk 0:01:07]}  Bxd2 {[%clk 0:00:56]} 30. Rxd2 {[%clk 0:01:08]}  Qf5 {[%clk 0:00:53]} 31. Qd1 {[%clk 0:00:57]}  Rd7 {[%clk 0:00:43]} 32. Bc5 {[%clk 0:00:53]}  Ne6 {[%clk 0:00:37]} 33. Be3 {[%clk 0:00:31]}  Rcd8 {[%clk 0:00:31]} 34. Ne4 {[%clk 0:00:29]}  Ng4 {[%clk 0:00:15]} 35. Bf3 {[%clk 0:00:21]}  Nf6 {[%clk 0:00:11]} 36. Nxf6+ {[%clk 0:00:17]}  Qxf6 {[%clk 0:00:11]} 37. Bg4 {[%clk 0:00:18]}  Rd6 {[%clk 0:00:09]} 38. Bxh3 {[%clk 0:00:17]}  Nd4 {[%clk 0:00:09]} 39. Bg2 {[%clk 0:00:17]}  Kg7 {[%clk 0:00:08]} 40. h4 {[%clk 0:00:16]}  Qe6 {[%clk 0:00:08]} 41. Be4 {[%clk 0:00:16]}  f5 {[%clk 0:00:08]} 42. Bg2 {[%clk 0:00:17]}  c5 {[%clk 0:00:08]} 43. Bg5 {[%clk 0:00:16]}  R8d7 {[%clk 0:00:08]} 44. Qe1 {[%clk 0:00:16]}  e4 {[%clk 0:00:08]} 45. dxe4 {[%clk 0:00:16]}  fxe4 {[%clk 0:00:07]} 46. Qxe4 {[%clk 0:00:12]}  Qxe4 {[%clk 0:00:07]} 47. Bxe4 {[%clk 0:00:13]}  Nf3+ {[%clk 0:00:07]} 48. Bxf3 {[%clk 0:00:13]}  Rxd2 {[%clk 0:00:08]} 49. Bxd2 {[%clk 0:00:13]}  Rxd2 {[%clk 0:00:09]} 50. b3 {[%clk 0:00:13]}  Rxa2 {[%clk 0:00:09]} 51. Bd5 {[%clk 0:00:13]}  Rd2 {[%clk 0:00:09]} 52. Bc4 {[%clk 0:00:13]}  a5 {[%clk 0:00:10]} 53. Kf1 {[%clk 0:00:13]}  Rd4 {[%clk 0:00:10]} 54. Ke2 {[%clk 0:00:12]}  Kf6 {[%clk 0:00:11]} 55. Bg8 {[%clk 0:00:10]}  Rb4 {[%clk 0:00:09]} 56. Kd2 {[%clk 0:00:08]}  Ke5 {[%clk 0:00:09]} 57. f3 {[%clk 0:00:07]}  Kd4 {[%clk 0:00:08]} 58. g4 {[%clk 0:00:06]}  a4 {[%clk 0:00:06]} 59. bxa4 {[%clk 0:00:06]}  Rxa4 {[%clk 0:00:07]} 60. h5 {[%clk 0:00:07]}  gxh5 {[%clk 0:00:07]} 61. gxh5 {[%clk 0:00:07]}  Ra6 {[%clk 0:00:05]} 62. Bf7 {[%clk 0:00:05]}  Rf6 {[%clk 0:00:05]} 63. Bg6 {[%clk 0:00:04]}  Rxf3 {[%clk 0:00:06]} 64. h6 {[%clk 0:00:04]}  Rh3 {[%clk 0:00:06]} 65. h7 {[%clk 0:00:05]}  c4 {[%clk 0:00:06]} 66. Ke1 {[%clk 0:00:04]}  Ke3 {[%clk 0:00:05]} 67. Kf1 {[%clk 0:00:03]}  c3 {[%clk 0:00:06]} 68. Kg2 {[%clk 0:00:03]}  Rh6 {[%clk 0:00:06]} 69. Bc2 {[%clk 0:00:03]}  Kd2 {[%clk 0:00:06]} 70. Bf5 {[%clk 0:00:02]}  c2 {[%clk 0:00:06]} 71. h8=Q {[%clk 0:00:01]}  Rxh8 {[%clk 0:00:06]} 0-1

[Event "January 2 Early 2024"]
[Site "https://www.chess.com"]
[Date "2024.01.02"]
[Round "7"]
[White "Dyachuk, Artem"]
[Black "Manukyan, Artyom"]
[Result "1-0"]
[Board "68"]
[TimeControl "180+1"]
[WhiteFideId "34107924"]
[BlackFideId "13305786"]
[WhiteElo "2714"]
[BlackElo "2538"]
[WhiteTeam "UKR"]
[BlackTeam "ARM"]
[WhiteClock "0:01:51"]
[BlackClock "0:01:53"]

1. e4 {[%clk 0:03:00]}  e5 {[%clk 0:02:58]} 2. Nf3 {[%clk 0:03:00]}  Nc6 {[%clk 0:02:59]} 3. d4 {[%clk 0:02:58]}  exd4 {[%clk 0:02:57]} 4. Nxd4 {[%clk 0:02:59]}  Nf6 {[%clk 0:02:55]} 5. Nxc6 {[%clk 0:02:59]}  bxc6 {[%clk 0:02:56]} 6. e5 {[%clk 0:03:00]}  Qe7 {[%clk 0:02:56]} 7. Qe2 {[%clk 0:03:01]}  Nd5 {[%clk 0:02:57]} 8. h4 {[%clk 0:03:01]}  a5 {[%clk 0:02:57]} 9. c4 {[%clk 0:02:58]}  Ba6 {[%clk 0:02:53]} 10. Rh3 {[%clk 0:02:58]}  Nb6 {[%clk 0:02:51]} 11. b3 {[%clk 0:02:56]}  a4 {[%clk 0:02:51]} 12. Nd2 {[%clk 0:02:37]}  Qe6 {[%clk 0:02:49]} 13. Qe4 {[%clk 0:02:27]}  Bb4 {[%clk 0:02:34]} 14. Bd3 {[%clk 0:02:23]}  d5 {[%clk 0:02:25]} 15. cxd5 {[%clk 0:02:21]}  cxd5 {[%clk 0:02:23]} 16. Qxb4 {[%clk 0:02:21]}  Bxd3 {[%clk 0:02:15]} 17. Rxd3 {[%clk 0:02:18]}  axb3 {[%clk 0:02:09]} 18. Nxb3 {[%clk 0:02:15]}  Ra4 {[%clk 0:02:04]} 19. Qb5+ {[%clk 0:02:12]}  Kf8 {[%clk 0:02:00]} 20. Nc5 {[%clk 0:02:09]}  Qxe5+ {[%clk 0:01:58]} 21. Re3 {[%clk 0:02:08]}  Re4 {[%clk 0:01:58]} 22. Nxe4 {[%clk 0:01:58]}  Qxa1 {[%clk 0:01:57]} 23. Qc5+ {[%clk 0:01:52]}  Kg8 {[%clk 0:01:54]} 24. Nf6+ {[%clk 0:01:51]}  gxf6 {[%clk 0:01:53]} 25. Rg3# {[%clk 0:01:51]} 1-0

[Event "January 2 Early 2024"]
[Site "https://www.chess.com"]
[Date "2024.01.02"]
[Round "7"]
[White "Vallejo Diaz, Javier"]
[Black "Mindlin, Alon"]
[Result "1-0"]
[Board "71"]
[TimeControl "180+1"]
[WhiteFideId "2256398"]
[BlackFideId "2800071"]
[WhiteElo "2527"]
[BlackElo "2694"]
[WhiteTeam "ESP"]
[BlackTeam "ISR"]
[WhiteClock "0:00:11"]
[BlackClock "0:00:30"]

1. e4 {[%clk 0:03:00]}  g6 {[%clk 0:02:56]} 2. Nc3 {[%clk 0:02:58]}  Bg7 {[%clk 0:02:56]} 3. f4 {[%clk 0:02:59]}  d6 {[%clk 0:02:54]} 4. Nf3 {[%clk 0:02:59]}  c5 {[%clk 0:02:55]} 5. Bc4 {[%clk 0:02:58]}  a6 {[%clk 0:02:53]} 6. a4 {[%clk 0:02:58]}  Nc6 {[%clk 0:02:53]} 7. d3 {[%clk 0:02:57]}  e6 {[%clk 0:02:52]} 8. O-O {[%clk 0:02:48]}  Nge7 {[%clk 0:02:52]} 9. h3 {[%clk 0:02:47]}  O-O {[%clk 0:02:49]} 10. Ba2 {[%clk 0:02:32]}  d5 {[%clk 0:02:43]} 11. Qe2 {[%clk 0:02:29]}  Nd4 {[%clk 0:02:42]} 12. Qf2 {[%clk 0:02:21]}  b5 {[%clk 0:02:32]} 13. Ne5 {[%clk 0:02:12]}  b4 {[%clk 0:02:28]} 14. Nd1 {[%clk 0:02:10]}  Bb7 {[%clk 0:02:27]} 15. c3 {[%clk 0:02:06]}  b3 {[%clk 0:02:24]} 16. cxd4 {[%clk 0:02:01]}  bxa2 {[%clk 0:02:24]} 17. dxc5 {[%clk 0:01:57]}  dxe4 {[%clk 0:02:24]} 18. d4 {[%clk 0:01:52]}  Nf5 {[%clk 0:02:16]} 19. Be3 {[%clk 0:01:51]}  Bd5 {[%clk 0:02:16]} 20. Nc3 {[%clk 0:01:47]}  Rb8 {[%clk 0:02:16]} 21. Nxa2 {[%clk 0:01:39]}  h5 {[%clk 0:02:13]} 22. Nc3 {[%clk 0:01:31]}  h4 {[%clk 0:02:05]} 23. Rab1 {[%clk 0:01:30]}  Rb3 {[%clk 0:02:02]} 24. Rfe1 {[%clk 0:01:21]}  Qa5 {[%clk 0:01:46]} 25. Rbd1 {[%clk 0:00:59]}  Rfb8 {[%clk 0:01:45]} 26. Rd2 {[%clk 0:00:59]}  Ng3 {[%clk 0:01:38]} 27. Nd7 {[%clk 0:00:50]}  R8b4 {[%clk 0:01:32]} 28. Nb6 {[%clk 0:00:48]}  Bf6 {[%clk 0:01:21]} 29. Nbxd5 {[%clk 0:00:46]}  exd5 {[%clk 0:01:21]} 30. Nxd5 {[%clk 0:00:47]}  Rxb2 {[%clk 0:01:17]} 31. Nxf6+ {[%clk 0:00:38]}  Kg7 {[%clk 0:01:17]} 32. Nd5 {[%clk 0:00:33]}  R4b3 {[%clk 0:01:14]} 33. f5 {[%clk 0:00:29]}  Rxe3 {[%clk 0:01:12]} 34. f6+ {[%clk 0:00:27]}  Kh7 {[%clk 0:01:12]} 35. Nxe3 {[%clk 0:00:20]}  Rxd2 {[%clk 0:01:12]} 36. Qf4 {[%clk 0:00:20]}  Nh5 {[%clk 0:01:05]} 37. Qxh4 {[%clk 0:00:19]}  Kg8 {[%clk 0:00:48]} 38. g4 {[%clk 0:00:19]}  Qc7 {[%clk 0:00:48]} 39. Ng2 {[%clk 0:00:17]}  Nf4 {[%clk 0:00:48]} 40. Qh6 {[%clk 0:00:13]}  Rxg2+ {[%clk 0:00:45]} 41. Kh1 {[%clk 0:00:13]}  Nh5 {[%clk 0:00:34]} 42. Kxg2 {[%clk 0:00:11]}  Qg3+ {[%clk 0:00:34]} 43. Kf1 {[%clk 0:00:12]}  Qf3+ {[%clk 0:00:35]} 44. Kg1 {[%clk 0:00:12]}  Nxf6 {[%clk 0:00:30]} 45. Qe3 {[%clk 0:00:11]} 1-0

[Event "January 2 Early 2024"]
[Site "https://www.chess.com"]
[Date "2024.01.02"]
[Round "7"]
[White "Carre, Sylvain"]
[Black "Piesik, Piotr"]
[Result "0-1"]
[Board "75"]
[TimeControl "180+1"]
[WhiteFideId "642118"]
[BlackFideId "1136194"]
[WhiteElo "2429"]
[BlackElo "2661"]
[WhiteTeam "FRA"]
[BlackTeam "CZE"]
[WhiteClock "0:00:01"]
[BlackClock "0:00:57"]

1. d4 {[%clk 0:02:55]}  c5 {[%clk 0:02:59]} 2. c3 {[%clk 0:02:54]}  Nf6 {[%clk 0:02:59]} 3. Nf3 {[%clk 0:02:54]}  d5 {[%clk 0:02:59]} 4. Bf4 {[%clk 0:02:54]}  Bf5 {[%clk 0:02:59]} 5. e3 {[%clk 0:02:55]}  Nbd7 {[%clk 0:02:59]} 6. Nbd2 {[%clk 0:02:55]}  e6 {[%clk 0:02:59]} 7. h3 {[%clk 0:02:54]}  h6 {[%clk 0:02:59]} 8. Qb3 {[%clk 0:02:53]}  Qb6 {[%clk 0:02:59]} 9. Bb5 {[%clk 0:02:51]}  a6 {[%clk 0:02:59]} 10. Be2 {[%clk 0:02:43]}  c4 {[%clk 0:02:59]} 11. Qxb6 {[%clk 0:02:34]}  Nxb6 {[%clk 0:03:00]} 12. Bd1 {[%clk 0:02:26]}  Be7 {[%clk 0:02:54]} 13. O-O {[%clk 0:02:26]}  O-O {[%clk 0:02:53]} 14. Rc1 {[%clk 0:02:23]}  Bd3 {[%clk 0:02:52]} 15. Re1 {[%clk 0:02:23]}  Nbd7 {[%clk 0:02:50]} 16. Bc2 {[%clk 0:02:23]}  Bxc2 {[%clk 0:02:49]} 17. Rxc2 {[%clk 0:02:24]}  b5 {[%clk 0:02:48]} 18. a3 {[%clk 0:02:24]}  a5 {[%clk 0:02:47]} 19. e4 {[%clk 0:02:24]}  dxe4 {[%clk 0:02:43]} 20. Nxe4 {[%clk 0:02:25]}  Nxe4 {[%clk 0:02:44]} 21. Rxe4 {[%clk 0:02:25]}  Nf6 {[%clk 0:02:45]} 22. Re1 {[%clk 0:02:23]}  Nd5 {[%clk 0:02:44]} 23. Bg3 {[%clk 0:02:14]}  Rfc8 {[%clk 0:02:41]} 24. Ne5 {[%clk 0:02:00]}  Bd6 {[%clk 0:02:37]} 25. Kh2 {[%clk 0:01:26]}  b4 {[%clk 0:02:30]} 26. axb4 {[%clk 0:01:25]}  axb4 {[%clk 0:02:30]} 27. cxb4 {[%clk 0:01:12]}  Bxe5 {[%clk 0:02:28]} 28. dxe5 {[%clk 0:01:05]}  Nxb4 {[%clk 0:02:28]} 29. Rd2 {[%clk 0:00:57]}  Ra2 {[%clk 0:02:16]} 30. Rc1 {[%clk 0:00:46]}  Kh7 {[%clk 0:02:03]} 31. Bf4 {[%clk 0:00:37]}  Nd5 {[%clk 0:01:57]} 32. Be3 {[%clk 0:00:19]}  Nxe3 {[%clk 0:01:40]} 33. fxe3 {[%clk 0:00:20]}  c3 {[%clk 0:01:40]} 34. Rdc2 {[%clk 0:00:11]}  cxb2 {[%clk 0:01:30]} 35. Rxb2 {[%clk 0:00:11]}  Rxb2 {[%clk 0:01:29]} 36. Rxc8 {[%clk 0:00:11]}  Rb3 {[%clk 0:01:26]} 37. Rc5 {[%clk 0:00:10]}  Rxe3 {[%clk 0:01:26]} 38. g4 {[%clk 0:00:09]}  Kg6 {[%clk 0:01:18]} 39. h4 {[%clk 0:00:09]}  h5 {[%clk 0:01:17]} 40. g5 {[%clk 0:00:08]}  Kf5 {[%clk 0:01:06]} 41. Rc7 {[%clk 0:00:08]}  Kg6 {[%clk 0:01:03]} 42. Rc5 {[%clk 0:00:08]}  Rd3 {[%clk 0:01:03]} 43. Kg2 {[%clk 0:00:04]}  Rd5 {[%clk 0:01:02]} 44. Rc3 {[%clk 0:00:03]}  Rxe5 {[%clk 0:01:03]} 45. Kg3 {[%clk 0:00:03]}  Re4 {[%clk 0:01:02]} 46. Rf3 {[%clk 0:00:03]}  Rg4+ {[%clk 0:01:02]} 47. Kh3 {[%clk 0:00:04]}  f6 {[%clk 0:01:02]} 48. gxf6 {[%clk 0:00:04]}  gxf6 {[%clk 0:01:03]} 49. Ra3 {[%clk 0:00:03]}  e5 {[%clk 0:01:02]} 50. Ra8 {[%clk 0:00:04]}  Rb4 {[%clk 0:00:58]} 51. Rg8+ {[%clk 0:00:04]}  Kh7 {[%clk 0:00:57]} 52. Rf8 {[%clk 0:00:05]}  Kg7 {[%clk 0:00:58]} 53. Ra8 {[%clk 0:00:05]}  Rb3+ {[%clk 0:00:58]} 54. Kh2 {[%clk 0:00:05]}  Kg6 {[%clk 0:00:58]} 55. Rh8 {[%clk 0:00:05]}  e4 {[%clk 0:00:58]} 56. Rg8+ {[%clk 0:00:06]}  Kf5 {[%clk 0:00:58]} 57. Rh8 {[%clk 0:00:06]}  Kg4 {[%clk 0:00:58]} 58. Rf8 {[%clk 0:00:06]}  f5 {[%clk 0:00:57]} 59. Kg2 {[%clk 0:00:05]}  Rb2+ {[%clk 0:00:57]} 60. Kf1 {[%clk 0:00:05]}  f4 {[%clk 0:00:58]} 61. Ra8 {[%clk 0:00:04]}  e3 {[%clk 0:00:58]} 62. Ra1 {[%clk 0:00:04]}  Kf3 {[%clk 0:00:57]} 63. Ke1 {[%clk 0:00:01]}  Rh2 {[%clk 0:00:57]} 0-1

[Event "January 2 Early 2024"]
[Site "https://www.chess.com"]
[Date "2024.01.02"]
[Round "7"]
[White "Kleibel, Uwe"]
[Black "Jia, Haoxiang"]
[Result "0-1"]
[Board "77"]
[TimeControl "180+1"]
[WhiteFideId "1270982"]
[BlackFideId "8602999"]
[WhiteElo "2367"]
[BlackElo "2646"]
[WhiteTeam "GER"]
[BlackTeam "CHN"]
[WhiteClock "0:00:08"]
[BlackClock "0:00:16"]

1. e4 {[%clk 0:03:00]}  c5 {[%clk 0:02:59]} 2. Nf3 {[%clk 0:03:00]}  d6 {[%clk 0:03:00]} 3. d4 {[%clk 0:02:59]}  cxd4 {[%clk 0:03:01]} 4. Qxd4 {[%clk 0:03:00]}  Nc6 {[%clk 0:03:00]} 5. Qe3 {[%clk 0:03:00]}  Nf6 {[%clk 0:02:58]} 6. Be2 {[%clk 0:03:00]}  g6 {[%clk 0:02:58]} 7. O-O {[%clk 0:03:01]}  Bg7 {[%clk 0:02:59]} 8. Rd1 {[%clk 0:03:01]}  O-O {[%clk 0:03:00]} 9. h3 {[%clk 0:03:02]}  Qc7 {[%clk 0:02:56]} 10. c4 {[%clk 0:03:01]}  a6 {[%clk 0:02:47]} 11. Nc3 {[%clk 0:03:01]}  Ne5 {[%clk 0:02:34]} 12. Nxe5 {[%clk 0:02:58]}  dxe5 {[%clk 0:02:35]} 13. b3 {[%clk 0:02:55]}  Be6 {[%clk 0:02:34]} 14. Bb2 {[%clk 0:02:53]}  Rfd8 {[%clk 0:02:33]} 15. Rac1 {[%clk 0:02:53]}  Qa5 {[%clk 0:02:29]} 16. a3 {[%clk 0:02:42]}  Rxd1+ {[%clk 0:02:28]} 17. Rxd1 {[%clk 0:02:41]}  Rd8 {[%clk 0:02:29]} 18. Nd5 {[%clk 0:02:34]}  Nxd5 {[%clk 0:02:26]} 19. cxd5 {[%clk 0:02:35]}  Bd7 {[%clk 0:02:26]} 20. b4 {[%clk 0:02:29]}  Qa4 {[%clk 0:02:10]} 21. Rc1 {[%clk 0:02:29]}  Rc8 {[%clk 0:02:08]} 22. Rxc8+ {[%clk 0:02:25]}  Bxc8 {[%clk 0:02:08]} 23. Qc1 {[%clk 0:02:21]}  Qd7 {[%clk 0:01:51]} 24. Bg4 {[%clk 0:02:16]}  f5 {[%clk 0:01:51]} 25. exf5 {[%clk 0:01:50]}  gxf5 {[%clk 0:01:51]} 26. Bf3 {[%clk 0:01:35]}  b5 {[%clk 0:01:32]} 27. Qg5 {[%clk 0:01:31]}  Qd6 {[%clk 0:01:30]} 28. Qc1 {[%clk 0:01:11]}  Bb7 {[%clk 0:01:28]} 29. Qc5 {[%clk 0:01:10]}  e4 {[%clk 0:01:24]} 30. Bxg7 {[%clk 0:01:00]}  Kxg7 {[%clk 0:01:21]} 31. Qc3+ {[%clk 0:00:50]}  Qf6 {[%clk 0:01:20]} 32. Qc7 {[%clk 0:00:45]}  Bxd5 {[%clk 0:00:36]} 33. Qg3+ {[%clk 0:00:37]}  Kf8 {[%clk 0:00:29]} 34. Qb8+ {[%clk 0:00:36]}  Kg7 {[%clk 0:00:29]} 35. Qg3+ {[%clk 0:00:36]}  Kf7 {[%clk 0:00:24]} 36. Bh5+ {[%clk 0:00:34]}  Ke6 {[%clk 0:00:22]} 37. Qg8+ {[%clk 0:00:32]}  Ke5 {[%clk 0:00:21]} 38. Qb8+ {[%clk 0:00:32]}  Kd4 {[%clk 0:00:22]} 39. Qa7+ {[%clk 0:00:25]}  Ke5 {[%clk 0:00:18]} 40. Qc7+ {[%clk 0:00:22]}  Qd6 {[%clk 0:00:18]} 41. Qc3+ {[%clk 0:00:22]}  Ke6 {[%clk 0:00:18]} 42. Qg7 {[%clk 0:00:20]}  Qe5 {[%clk 0:00:14]} 43. Qg8+ {[%clk 0:00:13]}  Kd7 {[%clk 0:00:14]} 44. Qxh7 {[%clk 0:00:09]}  f4 {[%clk 0:00:14]} 45. Bg4+ {[%clk 0:00:09]}  Kc7 {[%clk 0:00:15]} 46. Qh4 {[%clk 0:00:06]}  e3 {[%clk 0:00:14]} 47. fxe3 {[%clk 0:00:07]}  fxe3 {[%clk 0:00:14]} 48. Qe1 {[%clk 0:00:07]}  Qe4 {[%clk 0:00:15]} 49. Qe2 {[%clk 0:00:08]}  Qd4 {[%clk 0:00:15]} 50. Kh2 {[%clk 0:00:09]}  Qe5+ {[%clk 0:00:15]} 51. Kg1 {[%clk 0:00:09]}  Qa1+ {[%clk 0:00:15]} 52. Kh2 {[%clk 0:00:10]}  Qxa3 {[%clk 0:00:16]} 53. Qxe3 {[%clk 0:00:08]}  Qxe3 {[%clk 0:00:16]} 0-1

[Event "January 2 Early 2024"]
[Site "https://www.chess.com"]
[Date "2024.01.02"]
[Round "7"]
[White "Lebedev, Artem S."]
[Black "Dragun, Kamil"]
[Result "1/2-1/2"]
[Board "83"]
[TimeControl "180+1"]
[WhiteFideId "34272747"]
[BlackFideId "1134167"]
[WhiteElo "2500"]
[BlackElo "2769"]
[WhiteTeam "RUS"]
[BlackTeam "POL"]
[WhiteClock "0:01:31"]
[BlackClock "0:02:19"]

1. e4 {[%clk 0:03:00]}  c6 {[%clk 0:02:54]} 2. d4 {[%clk 0:03:00]}  d5 {[%clk 0:02:55]} 3. e5 {[%clk 0:03:01]}  Bf5 {[%clk 0:02:54]} 4. h4 {[%clk 0:03:01]}  h5 {[%clk 0:02:54]} 5. Bd3 {[%clk 0:03:01]}  Bxd3 {[%clk 0:02:53]} 6. Qxd3 {[%clk 0:03:02]}  Qa5+ {[%clk 0:02:53]} 7. Nd2 {[%clk 0:03:01]}  e6 {[%clk 0:02:53]} 8. Nf3 {[%clk 0:03:01]}  Nh6 {[%clk 0:02:53]} 9. O-O {[%clk 0:02:59]}  Nf5 {[%clk 0:02:53]} 10. Nb3 {[%clk 0:02:58]}  Qb5 {[%clk 0:02:53]} 11. Qd1 {[%clk 0:02:53]}  c5 {[%clk 0:02:48]} 12. a4 {[%clk 0:02:26]}  Qc6 {[%clk 0:02:48]} 13. dxc5 {[%clk 0:02:24]}  Bxc5 {[%clk 0:02:46]} 14. Nxc5 {[%clk 0:02:24]}  Qxc5 {[%clk 0:02:46]} 15. b4 {[%clk 0:02:25]}  Qc4 {[%clk 0:02:41]} 16. b5 {[%clk 0:02:23]}  O-O {[%clk 0:02:36]} 17. Ba3 {[%clk 0:02:15]}  Rc8 {[%clk 0:02:35]} 18. Rb1 {[%clk 0:02:10]}  Nxh4 {[%clk 0:02:29]} 19. Nd4 {[%clk 0:01:44]}  Nd7 {[%clk 0:02:18]} 20. Rb4 {[%clk 0:01:37]}  Qc3 {[%clk 0:02:18]} 21. Rb3 {[%clk 0:01:30]}  Qc4 {[%clk 0:02:18]} 22. Rb4 {[%clk 0:01:30]}  Qc3 {[%clk 0:02:18]} 23. Rb3 {[%clk 0:01:31]}  Qc4 {[%clk 0:02:19]} 24. Rb4 {[%clk 0:01:31]} 1/2-1/2

[Event "January 2 Early 2024"]
[Site "https://www.chess.com"]
[Date "2024.01.02"]
[Round "7"]
[White "Balla, Tamas-Kristof"]
[Black "Korchmar, Vasiliy"]
[Result "0-1"]
[Board "84"]
[TimeControl "180+1"]
[WhiteFideId "1208497"]
[BlackFideId "24131750"]
[WhiteElo "2500"]
[BlackElo "2749"]
[WhiteTeam "ROU"]
[BlackTeam "RUS"]
[WhiteClock "0:01:13"]
[BlackClock "0:02:02"]

1. e4 {[%clk 0:03:00]}  c5 {[%clk 0:02:59]} 2. c3 {[%clk 0:03:01]}  d5 {[%clk 0:02:59]} 3. exd5 {[%clk 0:03:01]}  Nf6 {[%clk 0:02:59]} 4. d4 {[%clk 0:02:58]}  Nxd5 {[%clk 0:02:57]} 5. Nf3 {[%clk 0:02:54]}  cxd4 {[%clk 0:02:55]} 6. cxd4 {[%clk 0:02:44]}  g6 {[%clk 0:02:54]} 7. Nc3 {[%clk 0:02:43]}  Nxc3 {[%clk 0:02:54]} 8. bxc3 {[%clk 0:02:44]}  Bg7 {[%clk 0:02:55]} 9. Bc4 {[%clk 0:02:39]}  Qc7 {[%clk 0:02:55]} 10. Qe2 {[%clk 0:02:36]}  Bg4 {[%clk 0:02:48]} 11. Bxf7+ {[%clk 0:02:17]}  Kxf7 {[%clk 0:02:48]} 12. Ng5+ {[%clk 0:02:17]}  Kg8 {[%clk 0:02:33]} 13. Qxg4 {[%clk 0:02:17]}  Qxc3+ {[%clk 0:02:33]} 14. Kf1 {[%clk 0:01:34]}  Qc4+ {[%clk 0:02:34]} 15. Kg1 {[%clk 0:01:28]}  h6 {[%clk 0:02:34]} 16. Ne6 {[%clk 0:01:27]}  Kh7 {[%clk 0:02:15]} 17. Nxg7 {[%clk 0:01:23]}  Kxg7 {[%clk 0:02:16]} 18. Bb2 {[%clk 0:01:24]}  Kh7 {[%clk 0:02:10]} 19. Re1 {[%clk 0:01:19]}  Nc6 {[%clk 0:02:09]} 20. d5 {[%clk 0:01:18]}  Qxg4 {[%clk 0:02:07]} 21. dxc6 {[%clk 0:01:16]}  Rhe8 {[%clk 0:02:03]} 22. cxb7 {[%clk 0:01:14]}  Rab8 {[%clk 0:02:04]} 23. h3 {[%clk 0:01:13]}  Qb4 {[%clk 0:02:02]} 0-1

[Event "January 2 Early 2024"]
[Site "https://www.chess.com"]
[Date "2024.01.02"]
[Round "7"]
[White "Liyanage, Ranindu Dilshan"]
[Black "Ladan, Nicholas"]
[Result "1/2-1/2"]
[Board "85"]
[TimeControl "180+1"]
[WhiteFideId "9915834"]
[BlackFideId "30918855"]
[WhiteElo "2712"]
[BlackElo "2498"]
[WhiteTeam "SRI"]
[BlackTeam "USA"]
[WhiteClock "0:00:16"]
[BlackClock "0:00:05"]

1. c4 {[%clk 0:02:57]}  e5 {[%clk 0:02:59]} 2. Nc3 {[%clk 0:02:57]}  Nc6 {[%clk 0:02:59]} 3. Nf3 {[%clk 0:02:57]}  Bc5 {[%clk 0:03:00]} 4. e3 {[%clk 0:02:56]}  d6 {[%clk 0:03:00]} 5. d4 {[%clk 0:02:56]}  exd4 {[%clk 0:02:55]} 6. exd4 {[%clk 0:02:56]}  Bb6 {[%clk 0:02:56]} 7. h3 {[%clk 0:02:55]}  Nf6 {[%clk 0:02:53]} 8. Be3 {[%clk 0:02:55]}  O-O {[%clk 0:02:52]} 9. Bd3 {[%clk 0:02:55]}  d5 {[%clk 0:02:36]} 10. c5 {[%clk 0:02:54]}  Ba5 {[%clk 0:02:37]} 11. O-O {[%clk 0:02:55]}  Bxc3 {[%clk 0:02:37]} 12. bxc3 {[%clk 0:02:56]}  Ne4 {[%clk 0:02:37]} 13. Qc2 {[%clk 0:02:54]}  f5 {[%clk 0:02:31]} 14. Rfe1 {[%clk 0:02:35]}  Qf6 {[%clk 0:02:16]} 15. Bf4 {[%clk 0:02:31]}  Rf7 {[%clk 0:02:08]} 16. Ne5 {[%clk 0:02:27]}  Nxe5 {[%clk 0:01:41]} 17. Bxe5 {[%clk 0:02:28]}  Qg6 {[%clk 0:01:36]} 18. Rab1 {[%clk 0:02:14]}  f4 {[%clk 0:01:21]} 19. Bxe4 {[%clk 0:01:31]}  dxe4 {[%clk 0:01:20]} 20. Qxe4 {[%clk 0:01:25]}  Qxe4 {[%clk 0:01:10]} 21. Rxe4 {[%clk 0:01:26]}  Bf5 {[%clk 0:01:10]} 22. Ree1 {[%clk 0:01:27]}  Bxb1 {[%clk 0:01:10]} 23. Rxb1 {[%clk 0:01:28]}  c6 {[%clk 0:01:08]} 24. f3 {[%clk 0:01:23]}  g5 {[%clk 0:01:06]} 25. Kf2 {[%clk 0:01:22]}  Re8 {[%clk 0:00:58]} 26. Ke2 {[%clk 0:01:22]}  Rd7 {[%clk 0:00:58]} 27. Re1 {[%clk 0:01:11]}  Kf7 {[%clk 0:00:56]} 28. Kd3 {[%clk 0:01:10]}  Kg6 {[%clk 0:00:55]} 29. Ke4 {[%clk 0:01:09]}  b6 {[%clk 0:00:41]} 30. cxb6 {[%clk 0:01:04]}  axb6 {[%clk 0:00:42]} 31. Rb1 {[%clk 0:01:04]}  b5 {[%clk 0:00:41]} 32. a3 {[%clk 0:00:57]}  Ra8 {[%clk 0:00:39]} 33. Rb3 {[%clk 0:00:56]}  Ra4 {[%clk 0:00:34]} 34. h4 {[%clk 0:00:51]}  h6 {[%clk 0:00:32]} 35. hxg5 {[%clk 0:00:49]}  hxg5 {[%clk 0:00:33]} 36. g4 {[%clk 0:00:41]}  Rda7 {[%clk 0:00:28]} 37. Bd6 {[%clk 0:00:41]}  Kf6 {[%clk 0:00:18]} 38. Rb1 {[%clk 0:00:39]}  Ke6 {[%clk 0:00:18]} 39. Bc5 {[%clk 0:00:38]}  Rh7 {[%clk 0:00:18]} 40. Bb4 {[%clk 0:00:35]}  Rh2 {[%clk 0:00:15]} 41. Re1 {[%clk 0:00:35]}  Ra7 {[%clk 0:00:11]} 42. Kd3+ {[%clk 0:00:35]}  Kf6 {[%clk 0:00:12]} 43. Re8 {[%clk 0:00:33]}  Rf2 {[%clk 0:00:11]} 44. Rf8+ {[%clk 0:00:30]}  Rf7 {[%clk 0:00:11]} 45. Rc8 {[%clk 0:00:17]}  Rxf3+ {[%clk 0:00:10]} 46. Ke2 {[%clk 0:00:18]}  Re3+ {[%clk 0:00:11]} 47. Kf2 {[%clk 0:00:18]}  Rh7 {[%clk 0:00:07]} 48. Rxc6+ {[%clk 0:00:18]}  Kg7 {[%clk 0:00:06]} 49. Rc7+ {[%clk 0:00:18]}  Kg6 {[%clk 0:00:06]} 50. Rc6+ {[%clk 0:00:18]}  Kg7 {[%clk 0:00:04]} 51. Rc7+ {[%clk 0:00:18]}  Kg8 {[%clk 0:00:04]} 52. Rc8+ {[%clk 0:00:18]}  Kf7 {[%clk 0:00:05]} 53. Rc7+ {[%clk 0:00:16]}  Kg6 {[%clk 0:00:05]} 54. Rc6+ {[%clk 0:00:16]}  Kg7 {[%clk 0:00:05]} 1/2-1/2